Cogmind - Beta 10.1 @@@ ROGUE MODE // 2020.10.02 @ 14:38:31 // Winter2019/RPGLIKE Player: HOTSOUP Result: Destroyed by L-41 Fighter with Axe Performance ------------- Evolutions (3) 1500 Regions Visited (5) 1000 Robots Destroyed (18) 90 Value Destroyed (478) 478 Prototype IDs (3) 60 Alien Tech Used (0) 0 Bonus (-177) -177 TOTAL SCORE: 2951 Bonus ------- Friendly Fire -177 Cogmind --------- Core Integrity 0/1000 Matter 270/300 Energy 265/265 System Corruption 0% Temperature Cool (0) Movement Flying (40) Location -7/Factory Parts ------- > --- POWER (1) -------- Improved Ion Engine > --- PROPULSION (1) --- Cesium-ion Thruster > --- UTILITY (4) ------ Enhanced Optical Array Hacking Suite > --- WEAPON (1) ------- Katana > --- INVENTORY (1) ---- Axe Peak State ------------ > --- POWER ------------ Improved Ion Engine > --- PROPULSION ------- Cesium-ion Thruster > --- UTILITY ---------- Enhanced Optical Array Hacking Suite > --- WEAPON ----------- Katana > --- INVENTORY -------- Axe [Rating: 15] Favorites ----------- Power Light Ion Engine Engine Light Ion Engine Propulsion Flight Unit Flight Unit Flight Unit Utility Hacking Suite Device Actuator Array Processor Enhanced Optical Array Hackware Hacking Suite Weapon Axe Energy Gun Medium Laser Slashing Weapon Axe Build | -11 -10 -10 -9 -8 -7 ------- Run | Scr Mat Min Mat Mat Fac Slots Evolved 3 | 1 . . 1 1 . Power . | . . . . . . Propulsion . | . . . . . . Utility 3 | 1 . . 1 1 . Weapon . | . . . . . . Parts Attached 13 | 2 . . 6 3 2 Power 4 | 1 . . 2 1 . Engine 4 | 1 . . 2 1 . Core . | . . . . . . Reactor . | . . . . . . Propulsion 3 | . . . 2 . 1 Treads . | . . . . . . Leg . | . . . . . . Wheel . | . . . . . . Hover . | . . . . . . Flight 3 | . . . 2 . 1 Utility 3 | . . . 1 1 1 Device 1 | . . . . 1 . Storage . | . . . . . . Processor 1 | . . . . . 1 Hackware 1 | . . . 1 . . Protection . | . . . . . . Artifact . | . . . . . . Weapon 3 | 1 . . 1 1 . Energy Gun 1 | 1 . . . . . Energy Cannon . | . . . . . . Ballistic Gun . | . . . . . . Ballistic Cannon . | . . . . . . Launcher . | . . . . . . Special Weapon . | . . . . . . Impact Weapon . | . . . . . . Slashing Weapon 2 | . . . 1 1 . Piercing Weapon . | . . . . . . Special Melee Weapon . | . . . . . . Unidentified Prototypes 1 | . . . 1 . . Parts Lost 1 | . . . . 1 . Power 1 | . . . . 1 . Propulsion . | . . . . . . Utility . | . . . . . . Weapon . | . . . . . . Highest Loss Streak 1 | . . . . 1 . Average Slot Usage (%) 56 | . 40 40 57 57 71 Engine 16 | . 20 20 17 11 14 Flight 12 | . . . 17 14 14 Processor 2 | . . . . . 14 Hackware 7 | . . . 3 14 14 Energy Gun 4 | . 20 20 1 . . Slashing Weapon 12 | . . . 17 14 14 Naked Turns . | . . . . . . Heaviest Build 14 | 5 5 5 6 14 9 Greatest Support 11 | 8 8 8 9 9 11 Greatest Overweight (x) 1 | . . . . 1 . Average Overweight (x) . | . . . . . . Largest Inventory Capacity 1 | . . . 1 1 1 Average Capacity . | . . . . 1 1 Most Carried 1 | . . . . 1 1 Average Carried . | . . . . . 1 Final Capacity 1 | . . . 1 1 1 Final Carried 1 | . . . . 1 1 Class Distribution -------------------- 100% | Hacker-Mutant Dominant Class ---------------- Hacker-Mutant | -10/Materials Hacker-Mutant | -10/Mines Hacker-Mutant | -9/Materials Hacker-Mutant | -8/Materials Hacker-Mutant | -7/Factory Resources | -11 -10 -10 -9 -8 -7 ----------- Run | Scr Mat Min Mat Mat Fac Matter Collected 300 | 220 . . 60 20 . Remotely . | . . . . . . Salvage Created 749 | . . 37 345 296 71 Parts 38 | . . 2 28 8 . Haulers Intercepted 1 | . . . 1 . . Recyclers Shooed . | . . . . . . Parts Field Recycled . | . . . . . . Retrieved Matter . | . . . . . . Parts Self-Destructed . | . . . . . . Prevented . | . . . . . . Kills | -11 -10 -10 -9 -8 -7 ------- Run | Scr Mat Min Mat Mat Fac Combat Hostiles Destroyed 16 | . . 2 9 4 1 Melee 14 | . . . 9 4 1 Guns 2 | . . 2 . . . Classes Destroyed 7 | . . 2 4 1 . Hauler 1 | . . . 1 . . Operator 1 | . . . 1 . . Swarmer 5 | . . 1 4 . . Grunt 8 | . . . 4 3 1 Duelist 1 | . . . . 1 . Sentry 1 | . . . 1 . . Assembled 1 | . . 1 . . . Best Kill Streak 4 | . . 2 4 4 1 Combat Bots Only 4 | . . 2 4 4 1 Max Kills in Single Turn 1 | . . 1 1 1 1 Gunslinging . | . . . . . . Exploded . | . . . . . . Melee 1 | . . . 1 1 1 Uniques/NPCs Destroyed . | . . . . . . Combat | -11 -10 -10 -9 -8 -7 -------- Run | Scr Mat Min Mat Mat Fac Damage Taken 1317 | . 35 160 340 421 361 Core 1179 | . 27 134 304 381 333 Absorbed by Shields . | . . . . . . Redirected to Core 477 | . 27 84 124 140 102 Core Remaining (%) 57 | 100 . 73 56 2 . Volleys Fired 26 | . 19 7 . . . Largest 1 | . 1 1 . . . Hottest 50 | . 50 50 . . . Shots Fired 26 | . 19 7 . . . Gun 26 | . 19 7 . . . Cannon . | . . . . . . Launcher . | . . . . . . Special . | . . . . . . Kinetic . | . . . . . . Thermal 26 | . 19 7 . . . Explosive . | . . . . . . Electromagnetic . | . . . . . . Robot Hit Streak 6 | . 6 4 . . . Robot Miss Streak 4 | . 4 1 . . . Penetration Max . | . . . . . . Secondary Targets . | . . . . . . Shots Hit Robots 61 | . 12 5 21 11 12 Core Hits 23 | . . 4 11 5 3 Critical Hits . | . . . . . . Critical Kills . | . . . . . . Critical Parts Destroyed . | . . . . . . Melee Attacks 75 | . . . 37 21 17 Impact . | . . . . . . Slashing 75 | . . . 37 21 17 Piercing . | . . . . . . Sneak Attacks 4 | . . . 3 . 1 Combat Hostiles . | . . . . . . Follow-up Attacks . | . . . . . . Damage Inflicted 1971 | . 151 62 1005 377 376 Guns 213 | . 151 62 . . . Cannons . | . . . . . . Explosions . | . . . . . . Melee 1758 | . . . 1005 377 376 Ramming . | . . . . . . Kinetic . | . . . . . . Thermal 213 | . 151 62 . . . Explosive . | . . . . . . Electromagnetic . | . . . . . . Impact . | . . . . . . Slashing 1758 | . . . 1005 377 376 Piercing . | . . . . . . Highest Corruption . | . . . . . . Average Corruption . | . . . . . . Corruption Purged . | . . . . . . Overload Shots . | . . . . . . Overflow Damage 129 | . . . 43 21 65 Projectiles . | . . . . . . Explosions . | . . . . . . Melee 129 | . . . 43 21 65 Knockbacks . | . . . . . . Impact . | . . . . . . Kinetic . | . . . . . . Secondary . | . . . . . . Self-Inflicted Damage . | . . . . . . Shots . | . . . . . . Rammed . | . . . . . . Targets Rammed . | . . . . . . Kicked . | . . . . . . Crushed . | . . . . . . Highest Temperature 454 | . 70 70 454 . . Average Temperature 77 | . 28 30 218 . . Received Heat Transfer 396 | . 9 57 96 216 18 Siege Activations . | . . . . . . Robots Corrupted . | . . . . . . Combat Hostiles . | . . . . . . Parts Fried . | . . . . . . Impact Corruptions . | . . . . . . Robots Melted . | . . . . . . Combat Hostiles . | . . . . . . Parts Melted 1 | . 1 . . . . Heat Transferred 629 | . 444 185 . . . Parts Sabotaged . | . . . . . . Parts Stolen . | . . . . . . Parts Stripped . | . . . . . . Power Chain Reactions . | . . . . . . Missiles Intercepted . | . . . . . . Alert | -11 -10 -10 -9 -8 -7 ------- Run | Scr Mat Min Mat Mat Fac Peak Influence 263 | . 37 59 263 158 48 Initial 55 | . . 14 22 55 1 Average 67 | . 12 44 89 106 21 Maximum Alert Level 1 | . . . 1 . . Low Security (%) 94 | 100 100 100 86 100 100 Level 1 5 | . . . 13 . . Level 2 . | . . . . . . Level 3 . | . . . . . . Level 4 . | . . . . . . Level 5 . | . . . . . . High Security . | . . . . . . Max Security . | . . . . . . Squads Dispatched 7 | . 1 . 2 2 2 Investigation 3 | . . . 2 1 . Extermination . | . . . . . . Reinforcement 4 | . 1 . . 1 2 Assault . | . . . . . . Garrison . | . . . . . . Intercept . | . . . . . . Construction Impeded 1 | . . . . . 1 Haulers Reinforced . | . . . . . . Stealth | -11 -10 -10 -9 -8 -7 --------- Run | Scr Mat Min Mat Mat Fac Distress Signals 6 | . 1 . 2 3 . Communications Jammed . | . . . . . . Distress Signals . | . . . . . . Times Spotted 56 | . 8 18 16 10 4 Peak Tracking Total 19 | . 8 19 5 8 4 Tactical Retreats 5 | . . 2 2 1 . Traps | -11 -10 -10 -9 -8 -7 ------- Run | Scr Mat Min Mat Mat Fac Traps Triggered . | . . . . . . Indirectly . | . . . . . . Trap Hack Attempts . | . . . . . . Triggered . | . . . . . . Disarmed . | . . . . . . Reprogrammed 6 | . . . . 6 . Reused . | . . . . . . Traps Extracted . | . . . . . . Installed . | . . . . . . Triggered . | . . . . . . Machines | -11 -10 -10 -9 -8 -7 ---------- Run | Scr Mat Min Mat Mat Fac Machines Disabled 1 | . . . 1 . . Max in Single Turn 1 | . . . 1 . . Machines Sabotaged . | . . . . . . Garrisons Compromised . | . . . . . . Overloaded Fab Kills . | . . . . . . Fab Network Shutdowns . | . . . . . . Hacking | -11 -10 -10 -9 -8 -7 --------- Run | Scr Mat Min Mat Mat Fac Machines Accessed 15 | . 2 . 6 4 3 Terminals 14 | . 2 . 5 4 3 Fabricators . | . . . . . . Repair Stations . | . . . . . . Recycling Units . | . . . . . . Scanalyzers 1 | . . . 1 . . Garrison Access . | . . . . . . Total Hacks 73 | . 5 . 34 25 9 Successful 51 | . 5 . 25 16 5 Failed 21 | . . . 9 8 4 Catastrophic 3 | . . . 1 . 2 Database Lockouts 1 | . . . . 1 . Manual 50 | . 3 . 20 19 8 Terminals 72 | . 5 . 33 25 9 Fabricators . | . . . . . . Repair Stations . | . . . . . . Recycling Units . | . . . . . . Scanalyzers 1 | . . . 1 . . Garrison Access . | . . . . . . Terminal Hacks 30 | . 2 . 15 11 2 Part Schematic 3 | . . . 1 2 . Robot Analysis 1 | . . . 1 . . Prototype ID Bank 1 | . 1 . . . . Level Access Points 1 | . . . . 1 . Branch Access Points 3 | . 1 . 1 1 . Machine Index 1 | . . . 1 . . Terminal Index 3 | . . . 1 1 1 Alert Level 1 | . . . 1 . . Unreport Threat 5 | . . . 2 3 . Locate Traps 1 | . . . . 1 . Reprogram Traps 1 | . . . . 1 . Dispatch Records 1 | . . . 1 . . Security Status 1 | . . . 1 . . Investigation Status 1 | . . . 1 . . Recall Investigation 1 | . . . 1 . . Recall Reinforcements 1 | . . . . . 1 Hauler Manifests 1 | . . . 1 . . Registered Prototypes 1 | . . . 1 . . Zone Layout 2 | . . . 1 1 . Fabricator Hacks . | . . . . . . Repair Station Hacks . | . . . . . . Recycling Unit Hacks . | . . . . . . Scanalyzer . | . . . . . . Garrison Access Hacks . | . . . . . . Unauthorized Hacks 21 | . 3 . 10 5 3 Terminals 20 | . 3 . 9 5 3 Track 1 | . 1 . . . . Assimilate 2 | . . . 2 . . Botnet 10 | . . . 5 3 2 Detonate 1 | . 1 . . . . Disrupt 2 | . . . 1 1 . Operators 4 | . 1 . 1 1 1 Fabricators . | . . . . . . Repair Stations . | . . . . . . Recycling Units . | . . . . . . Scanalyzers 1 | . . . 1 . . Extract 1 | . . . 1 . . Garrison Access . | . . . . . . Data Cores Recovered . | . . . . . . Used . | . . . . . . Hacking Detections 11 | . . . 5 3 3 Full Trace Events 3 | . . . 1 2 . Feedback Events . | . . . . . . Feedback Blocked . | . . . . . . Robot Schematics Acquired . | . . . . . . Robots Built . | . . . . . . Matter . | . . . . . . Time . | . . . . . . Total Robot Build Rating . | . . . . . . Part Schematics Acquired 4 | . . . 2 2 . Parts Built . | . . . . . . Matter . | . . . . . . Time . | . . . . . . Total Part Build Rating . | . . . . . . Parts Repaired . | . . . . . . Time . | . . . . . . Parts Recycled . | . . . . . . Recycled Matter . | . . . . . . Retrieved Matter . | . . . . . . Retrieved Components . | . . . . . . Parts Scanalyzed . | . . . . . . Part Schematics Acquired . | . . . . . . Parts Damaged . | . . . . . . Bothacking | -11 -10 -10 -9 -8 -7 ------------ Run | Scr Mat Min Mat Mat Fac Used RIF Installer . | . . . . . . Robots Hacked . | . . . . . . Non-combat . | . . . . . . Combat . | . . . . . . Robot Hacks Applied . | . . . . . . Relay Couplers Released . | . . . . . . Robots Rewired . | . . . . . . Allies Hacked . | . . . . . . Hacks Repelled . | . . . . . . Allies | -11 -10 -10 -9 -8 -7 -------- Run | Scr Mat Min Mat Mat Fac Total Allies 2 | . . . 2 . . Largest Group 1 | . . . 1 1 . Highest-Rated Group 10 | . . . 10 10 . Highest-Rated Ally 10 | . . . 10 10 . Total Orders . | . . . . . . Ally Attacks . | . . . . . . Total Damage . | . . . . . . Kills . | . . . . . . Allies Corrupted . | . . . . . . Allies Melted . | . . . . . . Intel | -11 -10 -10 -9 -8 -7 ------- Run | Scr Mat Min Mat Mat Fac Robot Analysis Total 1 | . . . 1 . . Derelict Logs Recovered . | . . . . . . Drone Launches . | . . . . . . Drone Recoveries . | . . . . . . Exploration | -11 -10 -10 -9 -8 -7 ------------- Run | Scr Mat Min Mat Mat Fac Turns Passed 794 | 21 100 52 310 182 129 Spaces Moved 1041 | 36 116 67 419 232 171 Core 233 | 36 116 67 14 . . Treads . | . . . . . . Legs . | . . . . . . Wheels . | . . . . . . Hover . | . . . . . . Flight 808 | . . . 405 232 171 Fastest Speed 40 | 50 50 50 40 40 40 Average Speed 42 | 50 50 50 40 40 40 Slowest Speed 120 | 50 50 50 50 120 40 Overloaded Moves . | . . . . . . Propulsion Burnouts . | . . . . . . Robots Hopped 1 | . . . 1 . . Cave-ins Triggered 1 | . . . 1 . . Exploration Rate (%) 20 | 3 26 23 36 26 9 Regions Visited 5 Branch Regions 1 Pre-discovered Areas . | . . . . . . Known Exits Taken 2 | . 1 . . 1 . Unknown Exits Taken 3 | 1 . 1 1 . . Scrap Searched . | . . . . . . Spaces Dug 19 | . . . 10 5 4 Terrain Destroyed 19 | . . . 10 5 4 Melee 19 | . . . 10 5 4 Projectile . | . . . . . . AOE . | . . . . . . Terrain Rammed . | . . . . . . Walls Destroyed . | . . . . . . Machines Disabled . | . . . . . . Actions | -11 -10 -10 -9 -8 -7 --------- Run | Scr Mat Min Mat Mat Fac Total 1235 | 37 138 77 493 284 206 Wait 73 | . 4 4 22 28 15 Move 1034 | 35 115 66 416 231 171 Hop 1 | . . . 1 . . Pick Up . | . . . . . . Fast Attach 10 | 2 . . 5 2 1 Attach . | . . . . . . Detach . | . . . . . . Swap 3 | . . . 1 1 1 Drop 6 | . . . 4 1 1 Fire 26 | . 19 7 . . . Melee 75 | . . . 37 21 17 Ram . | . . . . . . Kick . | . . . . . . Crush . | . . . . . . Escape Stasis . | . . . . . . Rewire . | . . . . . . Trap . | . . . . . . Miscellaneous 7 | . . . 7 . . Route ------- -11/Scrapyard -10/Materials (discovered 2 exits: *Min x2) -10/Mines -9/Materials (discovered 3 exits: *Mat / Min x2) -8/Materials (discovered 3 exits: *Fac x3) -7/Factory History --------- Turn | Location | Event 1 | -11/Scrapyard | Upgraded with Utility slot (x1) 5 | -11/Scrapyard | Discovered new exit (range 16) 22 | -11/Scrapyard | Entered Materials 31 | -10/Materials | Discovered new exit (range 11) 31 | -10/Materials | Identified exit to Mines 122 | -10/Materials | Entered Mines 123 | -10/Mines | Assembled infested the area 128 | -10/Mines | Assisted by a Guerilla fighting off Assembled 168 | -10/Mines | Discovered new exit (range 9) 174 | -10/Mines | Entered Materials 176 | -9/Materials | Reached level 2 264 | -9/Materials | Identified exit to Mines 309 | -9/Materials | Build established: Hacker-Mutant 356 | -9/Materials | Reached level 3 359 | -9/Materials | Upgraded with Utility slot (x1) 384 | -9/Materials | Core integrity fell below 50% 440 | -9/Materials | Crushed by falling debris 450 | -9/Materials | Discovered new exit (range 9) 484 | -9/Materials | Entered another Materials area 484 | -8/Materials | Accompanied by 1 ally 486 | -8/Materials | Reached level 4 487 | -8/Materials | Identified exit to Factory 531 | -8/Materials | Central database locked down 553 | -8/Materials | Core integrity fell below 50% 561 | -8/Materials | Upgraded with Utility slot (x1) 577 | -8/Materials | Core integrity fell below 20% 666 | -8/Materials | Entered Factory 667 | -7/Factory | Core integrity fell below 50% 667 | -7/Factory | Core integrity fell below 20% 668 | -7/Factory | Reached level 5 795 | -7/Factory | Destroyed by L-41 Fighter with Axe Last Messages --------------- Establishing remote squad link... Recalled reinforcement squad 115OW4G963. >>Trojan(Botnet) Trojan loaded successfully. Testing... Terminal linked with 1 system. Awaiting botnet instructions. 00734_ O-24 Administrator: "IFF HANDSHAKE FAILED. SECURING TERMINAL." 00739_ ALERT: Hostiles spotted, dispatching reinforcements to Terminal F002. 00749_ Connecting with Terminal... >>Index(Terminals) Found 20 terminals. Downloaded coordinate data. 00753_ Dropped Flight Unit. 00764_ U-05 Engineer builds a Wall. 00773_ G-47 Trooper destroyed. 00775_ R-06 Scavenger collects Flight Unit. 00775_ L-41 Fighter Carbon-fiber Leg severed. 00783_ R-06 Scavenger collects Carbon-fiber Leg. 00793_ Destroyed Microactuators. Map ----- +----------------------------------------------------+ | ######## # # # ???????????????????? | | o # """ # # ????????????????????? | | # """ + +?????????????????????? | | "" # """ # #?????????????????????? | | "" # # #??###########????????? | | "T # """ # #?? #????????? | | ##### "" # """ # #? #????????? | | ????# "" # """ # #? #????????? | | ????# # # # #????????? | | ????# # "" # # #????????? | | ????# / "" + + #????????? | | ????#### # "" #^ # #????????? | | ???????# # Y" # # [[ #????????? | | ???????# # "" ##### #? [[ #????????? | | ???????# # "" #???# #? [[ #????????? | | ?????? # "" #???# #?? #????????? | | ????? # #???# #?? #????????? | | ???? #########???# #???######+####???????? | | ?? #?????????### ###????? #???????? | | ? #?????????# ##### ##+##???? | | # ########## ########### "" k "" ??? | | #??????????# T "T | | ???????????#### ######## | | ???????????????????????# g ##### ######??? | | ?????????????????#########l###????? #???????? | | ?????????????????# @% ##???????/####???????? | | ?????????????????#"""" ##???????? ?????????? | | ?????????????????#"""" #???????????""???????? | | ?????????????????#"""" #????????????"???????? | | ?????????????????#"""" #????????????????????? | | ?????????????????# #????????????????????? | | ?????????????????# #????????????????????? | | ?????????????????############????????????????????? | | ?????????????????????????????????????????????????? | | ?????????????????????????????????????????????????? | | ?????????????????????????????????????????????????? | | ?????????????????????????????????????????????????? | | ?????????????????????????????????????????????????? | | ?????????????????????????????????????????????????? | | ?????????????????????????????????????????????????? | | ?????????????????????????????????????????????????? | | ?????????????????????????????????????????????????? | | ?????????????????????????????????????????????????? | | ?????????????????????????????????????????????????? | | ?????????????????????????????????????????????????? | | ?????????????????????????????????????????????????? | | ?????????????????????????????????????????????????? | | ?????????????????????????????????????????????????? | | ?????????????????????????????????????????????????? | | ?????????????????????????????????????????????????? | +----------------------------------------------------+ Best States ------------- Heat Dissipation 31 Energy Generation 12 Energy Capacity 265 Matter Stores 300 Matter Capacity 300 Sight Range 23 Terrain Scan Density 10 Evasion (%) 62 Offensive Hacking 35 Defensive Hacking 15 Item Schematics ----------------- VTOL Module | -9/Materials | Hacked Integration Mediator | -9/Materials | Extracted Melee Analysis Suite | -8/Materials | Hacked Imp. Cooling System | -8/Materials | Hacked Robot Schematics ------------------ None Fabricated ------------ Nothing Alien Tech Used ----------------- None Achievements -------------- None Challenges ------------ None RPGLIKE | -11 -10 -10 -9 -8 -7 --------- Run | Scr Mat Min Mat Mat Fac Levels Raised 4 | . . . 2 1 1 XP Earned 10160 | 3000 . 650 2870 2000 1640 XP Spent 8980 | 2700 . . 3260 1500 1520 Upgrades 27 | 8 . . 9 2 8 Utility Slot 3 | 1 . . 1 1 . Core Integrity 8 | . . . 2 . 6 Heat Dissipation 1 | . . . 1 . . Mass Support 1 | 1 . . . . . Inventory Capacity 1 | . . . 1 . . Sight Range 1 | . . . . . 1 Melee Accuracy 3 | . . . 2 1 . Hack Attack % 5 | 3 . . 1 . 1 Hack Defense % 3 | 2 . . 1 . . TH Damage % 1 | 1 . . . . . Protomatter Created 70 | . . . 70 . . Integrity Restored 162 | . . . 162 . . Core 162 | . . . 162 . . Protomatter Decayed 73 | . . 57 16 . . Game ------ Seed PulsePulseSuite Manual? 0 Play Time 00:24:33 Cumulative 82.5 hours Start 2020.10.02 @ 14:16:45 End 2020.10.02 @ 14:38:31 Sessions 1 Manual Loads 0 Difficulty Rogue Special Mode Winter2019/RPGLIKE Game No. 120 Rogue 96 Adventurer 22 Explorer 2 Win Type - Total 1 Types 1/0/0/0/0/0/0/0/0 Lore% 44 Gallery% 48 Achievement% 39 Wizard Run 0 Options --------- ASCII 0 Keyboard 0 Movement Numpad Keybinds 0 Fullscreen 1 Font 14/SmallcapsGlow Map View 84x54 Tactical HUD 1 Map Filters NONE Filters NONE Steam 1 RUN: 3c7bae04-7a33-4ef7-aa2e-8f240b48227e